bitfinex-derivatives/quotes_BTCF0:USTF0_20260118
["timestamp","ask_amount","ask_price","bid_price","bid_amount"]
[1768722630102,0.08931602,95162.0,95142.0,0.08678392]
[1768722641511,0.1818392,95160.0,95139.0,0.19057567]
[1768722641711,0.0885361,95159.0,95139.0,0.19057567]
[1768722642212,0.0885361,95158.0,95139.0,0.19057567]
[1768722643105,0.0885361,95158.0,95139.0,0.2761228]
[1768722645111,0.0933031,95159.0,95139.0,0.2761228]
[1768722645515,0.0969918,95164.0,95134.0,0.04994964]
[1768722645516,0.0885361,95155.0,95134.0,0.04994964]
[1768722645714,0.0933031,95152.0,95134.0,0.04931268]
[1768722645910,0.0933031,95150.0,95134.0,0.04931268]
[1768722646222,0.0885361,95149.0,95134.0,0.04931268]
[1768722647210,0.0885361,95149.0,95133.0,0.05051127]
[1768722648717,0.0885361,95149.0,95134.0,0.05042529]
[1768722650113,0.0885361,95149.0,95134.0,0.0502391]
[1768722651523,0.0885361,95149.0,95132.0,0.09468]
[1768722651725,0.0885361,95149.0,95134.0,0.05022956]
[1768722652424,0.0885361,95149.0,95134.0,0.04942299]
[1768722653023,0.0885361,95149.0,95132.0,0.09468]
[1768722653324,0.0885361,95149.0,95134.0,0.04942299]
[1768722653523,0.0885361,95149.0,95132.0,0.1455685]
[1768722654733,0.0885361,95149.0,95132.0,0.14409696]
[1768722656138,0.0885361,95149.0,95132.0,0.14397672]
[1768722657239,0.0933031,95150.0,95132.0,0.14397672]
[1768722657539,0.0933031,95150.0,95132.0,0.09468]
[1768722657741,0.0933031,95150.0,95132.0,0.14463487]
[1768722658844,0.0933031,95150.0,95132.0,0.14482688]
[1768722659942,0.0933031,95150.0,95132.0,0.09468]
[1768722660346,0.0933031,95150.0,95132.0,0.14494567]
[1768722661943,0.0933031,95150.0,95132.0,0.05026567]
[1768722662243,0.0933031,95150.0,95132.0,0.04985395]
[1768722663048,0.0933031,95150.0,95131.0,0.0859148]
[1768722663345,0.19847202,95150.0,95132.0,0.0859148]
[1768722666644,0.19847202,95150.0,95132.0,0.13540804]
[1768722668351,0.19847202,95150.0,95132.0,0.13495652]
[1768722668540,0.28625843,95150.0,95132.0,0.04904172]
[1768722668741,0.28625843,95150.0,95130.0,0.19984892]
[1768722669749,0.28625843,95150.0,95132.0,0.04904172]
[1768722671043,0.28625843,95150.0,95130.0,0.19984892]
[1768722671241,0.28625843,95150.0,95130.0,0.28576372]
[1768722672450,0.28625843,95150.0,95130.0,0.33554837]
[1768722672650,0.28625843,95150.0,95130.0,0.28576372]
[1768722672949,0.28625843,95150.0,95130.0,0.33635471]
[1768722673650,0.28625843,95150.0,95130.0,0.28576372]
[1768722673846,0.28625843,95150.0,95130.0,0.33591953]
[1768722674452,0.28625843,95150.0,95130.0,0.28576372]
[1768722674646,0.28625843,95150.0,95130.0,0.33591953]
[1768722675051,0.28625843,95150.0,95130.0,0.37378167]
[1768722675241,0.08778641,95149.0,95130.0,0.17393275]
[1768722675448,0.08778641,95148.0,95130.0,0.25000473]
[1768722675745,0.08778641,95148.0,95130.0,0.24932884]
[1768722676152,0.08778641,95148.0,95130.0,0.28719098]
[1768722676650,0.09796896,95149.0,95130.0,0.37310578]
[1768722676853,0.09796896,95149.0,95130.0,0.32362586]
[1768722677345,0.09796896,95149.0,95130.0,0.28576372]
[1768722678655,0.09796896,95149.0,95130.0,0.33637727]
[1768722678853,0.09796896,95149.0,95130.0,0.37423941]
[1768722680246,0.09796896,95149.0,95130.0,0.32362586]
[1768722680448,0.09796896,95149.0,95130.0,0.37394419]
[1768722681753,0.09796896,95149.0,95130.0,0.37397783]
[1768722683956,0.09796896,95149.0,95130.0,0.37446734]
[1768722684457,0.09796896,95149.0,95130.0,0.3366052]
[1768722684658,0.09796896,95149.0,95130.0,0.28576372]
[1768722684854,0.09796896,95149.0,95130.0,0.3366052]
[1768722685054,0.1867085,95149.0,95130.0,0.3366052]
[1768722686361,0.1867085,95149.0,95130.0,0.28576372]
[1768722686556,0.1867085,95149.0,95130.0,0.33476919]
[1768722687362,0.1867085,95149.0,95130.0,0.28576372]
[1768722687553,0.1867085,95149.0,95130.0,0.33562825]
[1768722688763,0.1867085,95149.0,95130.0,0.23045933]
[1768722688962,0.1867085,95149.0,95130.0,0.28576372]
[1768722690065,0.09796896,95149.0,95131.0,0.08400719]
[1768722692561,0.09796896,95149.0,95131.0,0.13398459]
[1768722693767,0.09796896,95149.0,95131.0,0.13459554]
[1768722696662,0.09796896,95149.0,95131.0,0.08400719]
[1768722696862,0.09796896,95149.0,95131.0,0.13408145]
[1768722698363,0.09796896,95149.0,95131.0,0.13378865]
[1768722699774,0.09796896,95149.0,95131.0,0.13350746]
[1768722700172,0.09796896,95149.0,95131.0,0.08400719]
[1768722701174,0.09796896,95149.0,95131.0,0.13350746]
[1768722702377,0.09796896,95149.0,95131.0,0.08400719]
[1768722702584,0.09796896,95149.0,95131.0,0.13419733]
[1768722703973,0.09796896,95149.0,95131.0,0.08400719]
[1768722704175,0.09796896,95149.0,95131.0,0.13406851]
[1768722705781,0.09796896,95149.0,95131.0,0.13317189]
[1768722707775,0.10516892,95150.0,95131.0,0.13317189]
[1768722708075,0.10516892,95150.0,95131.0,0.08400719]
[1768722708683,0.10516892,95150.0,95131.0,0.13299955]
[1768722709279,0.08359128,95149.0,95130.0,0.09468]
[1768722709485,0.08359128,95147.0,95130.0,0.09468]
[1768722709684,0.08359128,95146.0,95130.0,0.09468]
[1768722709878,0.08359128,95146.0,95130.0,0.19984892]
[1768722710094,0.09476181,95147.0,95130.0,0.19984892]
[1768722711186,0.08359128,95149.0,95130.0,0.19984892]
[1768722713785,0.08281451,95142.0,95124.0,0.04017491]
[1768722713992,0.10516892,95134.0,95118.0,0.03786214]
[1768722714191,0.10516892,95131.0,95117.0,0.08293685]
[1768722714392,0.18798343,95131.0,95116.0,0.03786214]
[1768722714586,0.08281451,95130.0,95113.0,0.03786214]
[1768722714792,0.08281451,95130.0,95112.0,0.13254214]
[1768722714997,0.08281451,95130.0,95112.0,0.09468]
[1768722715588,0.12454861,95130.0,95112.0,0.09468]
[1768722716193,0.08281451,95128.0,95108.0,0.03786214]
[1768722716496,0.12367379,95128.0,95109.0,0.09468]
[1768722716792,0.08281451,95128.0,95109.0,0.09468]
[1768722717185,0.08281451,95128.0,95109.0,0.17761685]
[1768722717381,0.09044996,95129.0,95110.0,0.08293685]
[1768722718286,0.09044996,95129.0,95111.0,0.08293685]
[1768722720900,0.10516892,95130.0,95111.0,0.08293685]
[1768722721996,0.10516892,95130.0,95112.0,0.08293685]
[1768722725303,0.08281451,95131.0,95112.0,0.08293685]
[1768722735708,0.09468,95133.0,95113.0,0.08293685]
[1768722736100,0.09468,95133.0,95114.0,0.08293685]
[1768722736410,0.17749451,95133.0,95114.0,0.08293685]
[1768722741815,0.08281451,95133.0,95114.0,0.08293685]
[1768722746018,0.09468,95135.0,95116.0,0.08366442]
[1768722746220,0.09468,95135.0,95118.0,0.17573708]
[1768722746420,0.09468,95135.0,95119.0,0.08366442]
[1768722758135,0.09468,95135.0,95118.0,0.09207266]
[1768722764838,0.09468,95135.0,95118.0,0.17615857]
[1768722769442,0.09468,95135.0,95119.0,0.08408591]
[1768722772045,0.09468,95135.0,95118.0,0.09207266]
[1768722774442,0.17762386,95137.0,95118.0,0.09207266]
[1768722778149,0.09468,95137.0,95119.0,0.08556971]
[1768722778351,0.09468,95137.0,95122.0,0.08556971]
[1768722780862,0.09588032,95141.0,95122.0,0.08556971]
[1768722780863,0.04147882,95141.0,95129.0,0.09608471]
[1768722781060,0.09468,95145.0,95130.0,0.18540971]
[1768722785464,0.09468,95145.0,95130.0,0.2905776]
[1768722785763,0.09468,95145.0,95131.0,0.08556971]
[1768722795668,0.10516789,95141.0,95127.0,0.08556971]
[1768722795867,0.10516789,95141.0,95125.0,0.09984]
[1768722796872,0.10516789,95135.0,95114.0,0.08556971]
[1768722797174,0.09465145,95138.0,95114.0,0.08556971]
[1768722797175,0.10516789,95132.0,95117.0,0.09468]
[1768722797375,0.10516789,95132.0,95117.0,0.14548273]
[1768722797780,0.08294386,95134.0,95117.0,0.14548273]
[1768722797966,0.10516789,95130.0,95117.0,0.14548273]
[1768722798676,0.10516789,95130.0,95117.0,0.09468]
[1768722798978,0.10516789,95130.0,95117.0,0.14389435]
[1768722799780,0.08294386,95134.0,95117.0,0.14389435]
[1768722799981,0.10516789,95130.0,95117.0,0.09468]
[1768722800782,0.10516789,95130.0,95117.0,0.1445263]
[1768722801782,0.10516789,95130.0,95117.0,0.14531254]
[1768722802584,0.10516789,95130.0,95117.0,0.09468]
[1768722803892,0.10516789,95130.0,95117.0,0.14514309]
[1768722804276,0.10516789,95130.0,95117.0,0.09468]
[1768722804778,0.10516789,95130.0,95117.0,0.14437684]
[1768722805880,0.10516789,95130.0,95117.0,0.09468]
[1768722806779,0.10516789,95130.0,95117.0,0.1451131]
[1768722806981,0.10516789,95130.0,95117.0,0.0504331]
[1768722807479,0.10516789,95130.0,95114.0,0.08556971]
[1768722807778,0.10516789,95130.0,95117.0,0.05067159]
[1768722808873,0.10516789,95130.0,95114.0,0.08556971]
[1768722809174,0.10516789,95130.0,95114.0,0.13553917]
[1768722809669,0.10516789,95130.0,95115.0,0.08134688]
[1768722810381,0.08294386,95134.0,95115.0,0.08134688]
[1768722810577,0.10516789,95130.0,95115.0,0.08134688]
[1768722810882,0.10516789,95130.0,95115.0,0.1320295]
[1768722811281,0.10516789,95130.0,95115.0,0.08134688]
[1768722811475,0.0833727,95137.0,95115.0,0.08134688]
[1768722811675,0.0833727,95137.0,95115.0,0.1320295]
[1768722812885,0.0833727,95137.0,95120.0,0.10516789]
[1768722813079,0.10516789,95140.0,95121.0,0.08134688]
[1768722813278,0.10516789,95140.0,95123.0,0.08134688]
[1768722813781,0.10516789,95140.0,95122.0,0.14149529]
[1768722813984,0.18854059,95140.0,95122.0,0.14149529]
[1768722814483,0.18854059,95140.0,95122.0,0.0920536]
[1768722815782,0.18854059,95140.0,95122.0,0.14251408]
[1768722816880,0.18854059,95140.0,95122.0,0.14157164]
[1768722817079,0.09468,95139.0,95122.0,0.14157164]
[1768722818786,0.09468,95139.0,95122.0,0.14251278]
[1768722819189,0.09468,95139.0,95122.0,0.0920536]
[1768722819390,0.09468,95139.0,95122.0,0.14251278]
[1768722819788,0.09468,95139.0,95122.0,0.0920536]
[1768722819976,0.09468,95139.0,95122.0,0.14131427]
[1768722822290,0.09468,95139.0,95122.0,0.0920536]
[1768722822485,0.09468,95139.0,95122.0,0.14248619]
[1768722822789,0.09468,95139.0,95122.0,0.0920536]
[1768722822989,0.09468,95139.0,95122.0,0.14248619]
[1768722823390,0.09468,95139.0,95122.0,0.0920536]
[1768722823891,0.09468,95139.0,95122.0,0.14134053]
[1768722824595,0.09468,95139.0,95122.0,0.0920536]
[1768722824783,0.09468,95139.0,95122.0,0.14134111]
[1768722825581,0.09468,95139.0,95122.0,0.0920536]
[1768722825784,0.09468,95139.0,95122.0,0.14177139]
[1768722826590,0.09468,95139.0,95122.0,0.0920536]
[1768722828693,0.09468,95139.0,95122.0,0.14105017]
[1768722830594,0.09468,95139.0,95122.0,0.0920536]
[1768722830794,0.09468,95139.0,95122.0,0.14131811]
[1768722831897,0.09468,95139.0,95122.0,0.14217725]
[1768722834197,0.09468,95139.0,95122.0,0.0920536]
[1768722834496,0.09468,95139.0,95122.0,0.14281807]
[1768722834799,0.09468,95139.0,95122.0,0.0920536]
[1768722834993,0.09468,95139.0,95122.0,0.14281807]
[1768722835896,0.09468,95139.0,95122.0,0.0920536]
[1768722836897,0.09468,95139.0,95122.0,0.1429886]
[1768722837397,0.09468,95139.0,95122.0,0.0920536]
[1768722837894,0.09468,95139.0,95122.0,0.1417316]
[1768722838698,0.09468,95139.0,95122.0,0.0920536]
[1768722838998,0.09468,95139.0,95122.0,0.1417658]
[1768722840098,0.09468,95139.0,95122.0,0.0920536]
[1768722840299,0.09468,95139.0,95122.0,0.14243607]
[1768722840799,0.09468,95139.0,95122.0,0.0920536]
[1768722841000,0.09468,95139.0,95122.0,0.14243607]
[1768722842202,0.09468,95139.0,95122.0,0.0920536]
[1768722843001,0.09468,95139.0,95122.0,0.14176807]
[1768722843303,0.09468,95139.0,95122.0,0.0920536]
[1768722843697,0.09468,95139.0,95122.0,0.14182567]
[1768722845402,0.09468,95139.0,95122.0,0.0920536]
[1768722846902,0.09468,95139.0,95122.0,0.14266655]
[1768722848919,0.09468,95139.0,95122.0,0.0920536]
[1768722849105,0.09468,95139.0,95122.0,0.14193426]
[1768722849813,0.09468,95139.0,95122.0,0.0920536]
[1768722850114,0.09468,95139.0,95122.0,0.14193426]
[1768722852405,0.09468,95139.0,95122.0,0.0920536]
[1768722852605,0.09468,95139.0,95122.0,0.14278064]
[1768722853920,0.09468,95139.0,95122.0,0.0920536]
[1768722854120,0.09468,95139.0,95122.0,0.14217442]
[1768722854919,0.09468,95139.0,95122.0,0.0920536]
[1768722855112,0.09468,95139.0,95122.0,0.14235142]
[1768722855816,0.09468,95139.0,95122.0,0.0920536]
[1768722856012,0.09468,95139.0,95122.0,0.14235142]
[1768722856315,0.09468,95139.0,95122.0,0.0920536]
[1768722856501,0.09468,95139.0,95122.0,0.14216131]
[1768722858819,0.09468,95139.0,95122.0,0.14294294]
[1768722860922,0.09468,95139.0,95122.0,0.0920536]
[1768722861122,0.09468,95139.0,95122.0,0.14204074]
[1768722861822,0.09468,95139.0,95122.0,0.0920536]
[1768722862021,0.09468,95139.0,95122.0,0.14204074]
[1768722863327,0.09468,95139.0,95122.0,0.23061217]
[1768722863628,0.09468,95139.0,95122.0,0.18062503]
[1768722864427,0.09468,95139.0,95123.0,0.08857143]
[1768722866929,0.09468,95139.0,95123.0,0.13843486]
[1768722867328,0.09468,95139.0,95123.0,0.08857143]
[1768722867626,0.09468,95139.0,95123.0,0.13837377]
[1768722867831,0.09468,95139.0,95123.0,0.08857143]
[1768722868030,0.09468,95139.0,95123.0,0.13837377]
[1768722868528,0.09468,95139.0,95124.0,0.08857143]
[1768722869928,0.09468,95139.0,95123.0,0.09690997]
[1768722870931,0.09468,95139.0,95123.0,0.14724874]
[1768722872739,0.09468,95139.0,95123.0,0.09690997]
[1768722872938,0.09468,95139.0,95123.0,0.14787702]
[1768722873839,0.09468,95139.0,95123.0,0.1475376]
[1768722874743,0.09468,95139.0,95123.0,0.09690997]
[1768722874943,0.1361913,95139.0,95123.0,0.09690997]
[1768722898755,0.1361913,95139.0,95121.0,0.08857143]
[1768722921680,0.1361913,95139.0,95120.0,0.10519053]
[1768722921979,0.22152768,95139.0,95120.0,0.10519053]
[1768722922374,0.22152768,95139.0,95118.0,0.1832911]
[1768722922574,0.22152768,95139.0,95120.0,0.10519053]
[1768722924580,0.08681997,95138.0,95120.0,0.10519053]
[1768722925376,0.08681997,95137.0,95120.0,0.10519053]
[1768722925680,0.1361913,95139.0,95120.0,0.10519053]
[1768722925681,0.08681997,95133.0,95120.0,0.10519053]
[1768722928382,0.08681997,95133.0,95112.0,0.18579252]
[1768722928582,0.08681997,95133.0,95120.0,0.10519053]
[1768722931083,0.09674551,95134.0,95120.0,0.10519053]
[1768722934191,0.10519053,95130.0,95112.0,0.28047252]
[1768722934380,0.08681997,95129.0,95112.0,0.09468]
[1768722934887,0.10519053,95130.0,95112.0,0.18175791]
[1768722935997,0.08531117,95127.0,95112.0,0.09468]
[1768722936199,0.08531117,95126.0,95112.0,0.09468]
[1768722936588,0.10519053,95122.0,95109.0,0.38595366]
[1768722936888,0.10519053,95120.0,95109.0,0.38595366]
[1768722937087,0.08531117,95119.0,95109.0,0.38595366]
[1768722937598,0.08531117,95119.0,95104.0,0.00231326]
[1768722938402,0.10519053,95120.0,95104.0,0.00231326]
[1768722938796,0.08531117,95122.0,95104.0,0.00231326]
[1768722949810,0.08531117,95121.0,95104.0,0.00231326]
[1768722950005,0.08531117,95121.0,95110.0,0.10519053]
[1768722950208,0.09312874,95122.0,95110.0,0.10519053]
[1768722950510,0.04129517,95123.0,95110.0,0.10519053]
[1768722951310,0.04200195,95123.0,95110.0,0.10519053]
[1768722951805,0.17999117,95126.0,95110.0,0.10519053]
[1768722952015,0.04200195,95123.0,95110.0,0.10519053]
[1768722952407,0.04228055,95123.0,95110.0,0.10519053]
[1768722954312,0.04109964,95123.0,95110.0,0.10519053]
[1768722954507,0.17999117,95126.0,95110.0,0.10519053]
[1768722954708,0.04109964,95123.0,95110.0,0.10519053]
[1768722954912,0.17999117,95126.0,95110.0,0.10519053]
[1768722955114,0.04109964,95123.0,95110.0,0.10519053]
[1768722956415,0.04098639,95123.0,95110.0,0.10519053]
[1768722957917,0.08154715,95125.0,95110.0,0.10519053]
[1768722958116,0.04186307,95123.0,95110.0,0.10519053]
[1768722958817,0.04135727,95123.0,95110.0,0.10519053]
[1768722959116,0.04135727,95123.0,95105.0,0.08439397]
[1768722959318,0.04135727,95123.0,95110.0,0.10519053]
[1768722960517,0.04224375,95123.0,95110.0,0.10519053]
[1768722961617,0.04084827,95123.0,95110.0,0.10519053]
[1768722962717,0.04120896,95123.0,95110.0,0.10519053]
[1768722963710,0.09468,95126.0,95110.0,0.10519053]
[1768722964019,0.04103661,95123.0,95110.0,0.10519053]
[1768722965019,0.04204847,95123.0,95110.0,0.10519053]
[1768722966523,0.04210477,95123.0,95110.0,0.10519053]
[1768722966822,0.09468,95126.0,95110.0,0.10519053]
[1768722967017,0.04210477,95123.0,95110.0,0.10519053]
[1768722969321,0.04110398,95123.0,95108.0,0.08439397]
[1768722969521,0.09468,95126.0,95108.0,0.08439397]
[1768722969717,0.04110398,95123.0,95108.0,0.08439397]
[1768722971025,0.04090935,95123.0,95108.0,0.08439397]
[1768722972326,0.09468,95124.0,95108.0,0.08439397]
[1768722972926,0.04232033,95123.0,95108.0,0.08439397]
[1768722973823,0.04233578,95123.0,95108.0,0.08439397]
[1768722975226,0.09468,95124.0,95108.0,0.08439397]
[1768722975427,0.04225177,95123.0,95108.0,0.08439397]
[1768722975928,0.09468,95124.0,95108.0,0.08439397]
[1768722976126,0.04225177,95123.0,95108.0,0.08439397]
[1768722976730,0.09468,95124.0,95108.0,0.08439397]
[1768722976933,0.0418375,95137.0,95112.0,0.09031067]
[1768722977229,0.09468,95136.0,95118.0,0.08439397]
[1768722979532,0.09468,95136.0,95117.0,0.09031067]
[1768722979533,0.17622715,95136.0,95117.0,0.09031067]
[1768722982337,0.08288617,95135.0,95117.0,0.09031067]
[1768722982834,0.08288617,95135.0,95115.0,0.08439397]
[1768722991838,0.08288617,95135.0,95116.0,0.08482311]
[1768722992043,0.09468,95134.0,95116.0,0.08482311]
[1768722992233,0.09468,95134.0,95117.0,0.08482311]
[1768722998445,0.09468,95133.0,95116.0,0.09850189]
[1768723007957,0.09468,95132.0,95116.0,0.09850189]
[1768723011257,0.09468,95132.0,95113.0,0.08131262]
[1768723013563,0.09468,95132.0,95114.0,0.010517]
[1768723015958,0.09468,95132.0,95113.0,0.08131262]
[1768723016359,0.09468,95132.0,95113.0,0.09182962]
[1768723018366,0.09468,95132.0,95113.0,0.08131262]
[1768723021570,0.17737529,95132.0,95113.0,0.08131262]
[1768723022666,0.17842451,95131.0,95107.0,0.14496261]
[1768723022861,0.08269529,95127.0,95107.0,0.14469153]
[1768723023061,0.08269529,95125.0,95107.0,0.14469153]
[1768723023258,0.08269529,95124.0,95107.0,0.14469153]
[1768723023864,0.08269529,95124.0,95107.0,0.09468]
[1768723024065,0.08269529,95124.0,95107.0,0.14401201]
[1768723024472,0.08269529,95124.0,95107.0,0.09468]
[1768723025573,0.08269529,95124.0,95107.0,0.14401201]
[1768723026274,0.08269529,95124.0,95107.0,0.14399231]
[1768723026870,0.08269529,95124.0,95107.0,0.09468]
[1768723027075,0.08269529,95124.0,95107.0,0.14429844]
[1768723027870,0.08269529,95124.0,95107.0,0.14560427]
[1768723028271,0.08269529,95122.0,95107.0,0.05092427]
[1768723028574,0.08269529,95122.0,95106.0,0.05092427]
[1768723029476,0.08269529,95122.0,95102.0,0.09894753]
[1768723033878,0.08269529,95122.0,95110.0,0.10522532]
[1768723034973,0.09572922,95123.0,95110.0,0.10522532]
[1768723035169,0.09572922,95123.0,95103.0,0.08582438]
[1768723035486,0.09468,95126.0,95110.0,0.10522532]
[1768723035680,0.09468,95126.0,95116.0,0.10522532]
[1768723036480,0.09468,95126.0,95110.0,0.10522532]
[1768723036980,0.09468,95126.0,95109.0,0.08582438]
[1768723037189,0.09468,95126.0,95110.0,0.10522532]
[1768723037686,0.09468,95126.0,95112.0,0.08582438]
[1768723037886,0.09468,95126.0,95116.0,0.10522532]
[1768723041192,0.09468,95130.0,95116.0,0.10522532]
[1768723041490,0.09468,95130.0,95120.0,0.10522532]
[1768723044389,0.09468,95130.0,95111.0,0.18477191]
[1768723044594,0.08640212,95127.0,95106.0,0.2306478]
[1768723044892,0.08640212,95127.0,95110.0,0.10522532]
[1768723045492,0.18287164,95127.0,95110.0,0.10522532]
[1768723045684,0.08640212,95126.0,95106.0,0.17970119]
[1768723045889,0.08640212,95125.0,95110.0,0.10522532]
[1768723046090,0.08640212,95125.0,95106.0,0.17970119]
[1768723046289,0.08640212,95125.0,95110.0,0.10522532]
[1768723046489,0.09646952,95123.0,95110.0,0.10522532]
[1768723046691,0.08640212,95122.0,95110.0,0.10522532]
[1768723047496,0.09646952,95123.0,95110.0,0.10522532]
[1768723049097,0.19162744,95120.0,95104.0,0.00231326]
[1768723049297,0.18287164,95119.0,95104.0,0.00231326]
[1768723049499,0.08640212,95118.0,95104.0,0.00231326]
[1768723049698,0.09646952,95119.0,95104.0,0.00231326]
[1768723050697,0.18287164,95119.0,95104.0,0.00231326]
[1768723050902,0.08640212,95118.0,95104.0,0.00231326]
[1768723051292,0.08640212,95121.0,95104.0,0.00231326]
[1768723051698,0.09468,95124.0,95104.0,0.00231326]
[1768723052002,0.09468,95124.0,95104.0,0.08875218]
[1768723052897,0.09468,95124.0,95110.0,0.10522532]
[1768723055305,0.17660439,95124.0,95110.0,0.10522532]
[1768723055806,0.08192439,95123.0,95104.0,0.08875218]
[1768723056300,0.18714971,95120.0,95104.0,0.00231326]
[1768723056496,0.08192439,95120.0,95104.0,0.00231326]
[1768723056806,0.1760949,95123.0,95104.0,0.00231326]
[1768723057105,0.08192439,95122.0,95104.0,0.00231326]
[1768723061310,0.1760949,95122.0,95104.0,0.00231326]
[1768723061510,0.1760949,95121.0,95104.0,0.00231326]
[1768723061712,0.08192439,95120.0,95104.0,0.00231326]
[1768723062104,0.1760949,95120.0,95104.0,0.00231326]
[1768723062504,0.08192439,95119.0,95104.0,0.00231326]
[1768723065617,0.09417051,95120.0,95104.0,0.00231326]
[1768723066507,0.09417051,95120.0,95110.0,0.10522532]
[1768723068114,0.09417051,95120.0,95104.0,0.00231326]
[1768723069111,0.08192439,95119.0,95104.0,0.00231326]
[1768723069305,0.08192439,95118.0,95100.0,0.13362161]
[1768723069913,0.09417051,95119.0,95100.0,0.21688274]
[1768723073108,0.09417051,95119.0,95100.0,0.11165742]
[1768723073314,0.09417051,95119.0,95100.0,0.21688274]
[1768723075119,0.09417051,95119.0,95100.0,0.21173174]
[1768723075415,0.09417051,95119.0,95100.0,0.20660074]
[1768723075812,0.09417051,95119.0,95100.0,0.18848645]
[1768723076012,0.09417051,95119.0,95100.0,0.08326113]
[1768723076202,0.09417051,95119.0,95100.0,0.18848645]
[1768723078011,0.08192439,95121.0,95101.0,0.18333382]
[1768723078217,0.09468,95124.0,95110.0,0.10522532]
[1768723080321,0.09468,95125.0,95114.0,0.10522532]
[1768723080621,0.09468,95125.0,95115.0,0.10522532]
[1768723081010,0.09468,95125.0,95112.0,0.08649871]
[1768723081820,0.09468,95125.0,95110.0,0.20206043]
[1768723082121,0.09468,95125.0,95110.0,0.28855914]
[1768723083023,0.09468,95125.0,95110.0,0.20206043]
[1768723084920,0.00231277,95124.0,95110.0,0.20206043]
[1768723085118,0.1600081,95138.0,95116.0,0.08649871]
[1768723085422,0.0414923,95134.0,95120.0,0.10522532]
[1768723085727,0.09468,95135.0,95120.0,0.10522532]
[1768723087525,0.09468,95135.0,95120.0,0.15503279]
[1768723087725,0.00231228,95144.0,95125.0,0.10522532]
[1768723087928,0.09468,95143.0,95130.0,0.10522532]
[1768723088724,0.17915886,95143.0,95130.0,0.10522532]
[1768723091431,0.17915886,95143.0,95124.0,0.08649871]
[1768723093834,0.09468,95143.0,95125.0,0.09701471]
[1768723094531,0.09468,95143.0,95126.0,0.08649871]
[1768723094732,0.09468,95143.0,95127.0,0.08649871]
[1768723095635,0.00231228,95144.0,95128.0,0.09683511]
[1768723095835,0.00231228,95144.0,95129.0,0.18333382]
[1768723104454,0.00231228,95144.0,95130.0,0.08925668]
[1768723110350,0.00231228,95144.0,95130.0,0.18121403]
[1768723110845,0.00231228,95144.0,95131.0,0.08925668]
[1768723112343,0.00231228,95144.0,95131.0,0.18121403]
[1768723112544,0.00231228,95144.0,95132.0,0.08925668]
[1768723114445,0.00231228,95144.0,95133.0,0.18121403]
[1768723114644,0.00231228,95144.0,95134.0,0.08925668]
[1768723115550,0.09468,95148.0,95138.0,0.08845902]
[1768723115850,0.09468,95148.0,95130.0,0.10517301]
[1768723115851,0.00429564,95148.0,95140.0,0.08845902]
[1768723117054,0.00429564,95148.0,95139.0,0.09801787]
[1768723121251,0.09105082,95152.0,95139.0,0.09801787]
[1768723125844,0.09105082,95152.0,95137.0,0.08845902]
[1768723126960,0.09105082,95152.0,95134.0,0.09801787]
[1768723126961,0.08511394,95150.0,95128.0,0.19269787]
[1768723127157,0.08511394,95150.0,95128.0,0.28115689]
[1768723127357,0.08511394,95150.0,95129.0,0.08845902]
[1768723127858,0.08511394,95148.0,95128.0,0.19269787]
[1768723130959,0.08511394,95148.0,95128.0,0.28115689]
[1768723132060,0.08511394,95148.0,95129.0,0.08934719]
[1768723134164,0.09347543,95149.0,95129.0,0.08934719]
[1768723134360,0.09347543,95149.0,95130.0,0.08703453]
[1768723136865,0.17643025,95149.0,95130.0,0.08703453]
[1768723139171,0.17643025,95149.0,95129.0,0.09802393]
[1768723139372,0.08295482,95148.0,95129.0,0.09802393]
[1768723141069,0.08295482,95146.0,95129.0,0.00231266]
[1768723141271,0.08295482,95144.0,95124.0,0.00231277]
[1768723141463,0.18115364,95138.0,95114.0,0.12306889]
[1768723141669,0.08295482,95133.0,95114.0,0.09468]
[1768723142268,0.08295482,95133.0,95113.0,0.08703453]
[1768723142669,0.08295482,95132.0,95112.0,0.09571127]
[1768723144878,0.08295482,95126.0,95107.0,0.12306889]
[1768723145373,0.09819882,95127.0,95107.0,0.2774258]
[1768723145670,0.09819882,95127.0,95108.0,0.08703453]
[1768723145877,0.18115364,95127.0,95108.0,0.08703453]
[1768723147680,0.08295482,95123.0,95101.0,0.21113469]
[1768723148076,0.08295482,95123.0,95104.0,0.08934779]
[1768723150781,0.08295482,95123.0,95104.0,0.00231326]
[1768723150988,0.08295482,95121.0,95104.0,0.00231326]
[1768723151486,0.10523664,95120.0,95104.0,0.00231326]
[1768723154690,0.18819146,95120.0,95104.0,0.00231326]
[1768723156001,0.08295482,95119.0,95104.0,0.00231326]
[1768723156998,0.18115364,95119.0,95104.0,0.00231326]
[1768723157197,0.18115364,95118.0,95104.0,0.00231326]
[1768723157501,0.08295482,95117.0,95104.0,0.00231326]
[1768723159002,0.18115364,95117.0,95104.0,0.00231326]
[1768723159604,0.08295482,95116.0,95104.0,0.00231326]
[1768723160298,0.18115364,95116.0,95104.0,0.00231326]
[1768723161103,0.08295482,95115.0,95096.0,0.010519]
[1768723161307,0.08295482,95115.0,95095.0,0.08703453]
[1768723161507,0.08295482,95115.0,95096.0,0.010519]
[1768723161708,0.08295482,95115.0,95100.0,0.10523664]
[1768723161905,0.09819882,95116.0,95100.0,0.10523664]
[1768723162503,0.08295482,95119.0,95100.0,0.10523664]
[1768723164107,0.08295482,95119.0,95100.0,0.10013064]
[1768723164310,0.08295482,95119.0,95100.0,0.09504564]
[1768723164709,0.08295482,95119.0,95101.0,0.010518]
[1768723165103,0.08295482,95119.0,95100.0,0.09504564]
[1768723166304,0.08295482,95119.0,95100.0,0.10556364]
[1768723166904,0.08295482,95119.0,95100.0,0.11575464]
[1768723167910,0.08295482,95119.0,95102.0,0.010518]
[1768723168708,0.08295482,95119.0,95100.0,0.10523664]
[1768723169113,0.08295482,95119.0,95100.0,0.1899782]
[1768723169809,0.10523664,95110.0,95096.0,0.08474156]
[1768723170206,0.08187992,95117.0,95097.0,0.010519]
[1768723170406,0.08187992,95117.0,95097.0,0.08474156]
[1768723170607,0.08187992,95117.0,95100.0,0.10523664]
[1768723172522,0.08187992,95117.0,95097.0,0.08474156]
[1768723174717,0.08187992,95117.0,95100.0,0.10523664]
[1768723174917,0.08187992,95117.0,95097.0,0.08474156]
[1768723175222,0.08345726,95115.0,95095.0,0.19982916]
[1768723175516,0.10523664,95110.0,95095.0,0.19982916]
[1768723175722,0.08345726,95115.0,95095.0,0.19982916]
[1768723176319,0.08345726,95115.0,95095.0,0.28104348]
[1768723178219,0.08345726,95109.0,95093.0,0.1191347]
[1768723178918,0.19738681,95110.0,95093.0,0.1191347]
[1768723181815,0.08345726,95109.0,95089.0,0.00231363]
[1768723182020,0.08345726,95108.0,95090.0,0.09468]
[1768723182222,0.08345726,95108.0,95090.0,0.19991664]
[1768723183414,0.08345726,95108.0,95090.0,0.09468]
[1768723183617,0.08345726,95108.0,95090.0,0.19991664]